[Event "Titled Tuesday Blitz May 9 Late 2023"]
[White "Guz, Ari"]
[Black "Subelj, Jan"]
[WhiteFideId "2825759"]
[BlackFideId "14618583"]
[WhiteElo "2205"]
[BlackElo "2474"]
[Result "1/2-1/2"]
[Round "05"]
[TimeControl "180+2"]
[Date "2023.05.09"]
[WhiteClock "0:00:06"]
[BlackClock "0:00:15"]

1. b3 {[%clk 0:02:50]}  e5 {[%clk 0:01:41]} 2. Bb2 {[%clk 0:02:41]}  d6 {[%clk 0:01:42]} 3. e3 {[%clk 0:01:41]}  Nf6 {[%clk 0:01:40]} 4. d4 {[%clk 0:01:41]}  Nbd7 {[%clk 0:01:40]} 5. Nf3 {[%clk 0:01:41]}  e4 {[%clk 0:01:39]} 6. Nfd2 {[%clk 0:01:41]}  d5 {[%clk 0:01:39]} 7. c4 {[%clk 0:01:41]}  c6 {[%clk 0:01:40]} 8. Nc3 {[%clk 0:01:42]}  Bd6 {[%clk 0:01:40]} 9. Be2 {[%clk 0:01:40]}  O-O {[%clk 0:01:40]} 10. O-O {[%clk 0:01:41]}  a6 {[%clk 0:01:40]} 11. f3 {[%clk 0:01:40]}  exf3 {[%clk 0:01:39]} 12. Bxf3 {[%clk 0:01:41]}  Re8 {[%clk 0:01:34]} 13. cxd5 {[%clk 0:01:37]}  cxd5 {[%clk 0:01:35]} 14. Nxd5 {[%clk 0:01:29]}  Nxd5 {[%clk 0:01:36]} 15. Bxd5 {[%clk 0:01:29]}  Nf6 {[%clk 0:01:37]} 16. Bf3 {[%clk 0:01:30]}  Rxe3 {[%clk 0:01:36]} 17. Nc4 {[%clk 0:01:30]}  Re8 {[%clk 0:01:33]} 18. Nxd6 {[%clk 0:01:25]}  Qxd6 {[%clk 0:01:34]} 19. Re1 {[%clk 0:01:25]}  Rxe1+ {[%clk 0:01:27]} 20. Qxe1 {[%clk 0:01:25]}  Bg4 {[%clk 0:01:28]} 21. Bxb7 {[%clk 0:01:20]}  Rb8 {[%clk 0:01:28]} 22. Qe5 {[%clk 0:01:19]}  Qd8 {[%clk 0:01:19]} 23. Bc6 {[%clk 0:01:15]}  Rb6 {[%clk 0:01:12]} 24. d5 {[%clk 0:01:10]}  Rb4 {[%clk 0:01:07]} 25. Re1 {[%clk 0:01:06]}  h5 {[%clk 0:01:00]} 26. Qg5 {[%clk 0:00:46]}  Qb6+ {[%clk 0:00:51]} 27. Kh1 {[%clk 0:00:40]}  Qf2 {[%clk 0:00:51]} 28. Qe3 {[%clk 0:00:30]}  Rf4 {[%clk 0:00:50]} 29. Qxf2 {[%clk 0:00:22]}  Rxf2 {[%clk 0:00:51]} 30. Bxf6 {[%clk 0:00:22]}  gxf6 {[%clk 0:00:50]} 31. h3 {[%clk 0:00:22]}  Bf5 {[%clk 0:00:50]} 32. a4 {[%clk 0:00:11]}  Kg7 {[%clk 0:00:47]} 33. b4 {[%clk 0:00:10]}  Rb2 {[%clk 0:00:46]} 34. b5 {[%clk 0:00:11]}  axb5 {[%clk 0:00:46]} 35. axb5 {[%clk 0:00:12]}  Bd3 {[%clk 0:00:46]} 36. Rd1 {[%clk 0:00:11]}  Bxb5 {[%clk 0:00:46]} 37. Bxb5 {[%clk 0:00:12]}  Rxb5 {[%clk 0:00:46]} 38. d6 {[%clk 0:00:13]}  Rb8 {[%clk 0:00:46]} 39. d7 {[%clk 0:00:14]}  Rd8 {[%clk 0:00:47]} 40. Kh2 {[%clk 0:00:14]}  Kg6 {[%clk 0:00:47]} 41. Kg3 {[%clk 0:00:15]}  Kf5 {[%clk 0:00:43]} 42. Kh4 {[%clk 0:00:14]}  Kg6 {[%clk 0:00:40]} 43. Rd5 {[%clk 0:00:14]}  f5 {[%clk 0:00:41]} 44. Rd6+ {[%clk 0:00:15]}  f6 {[%clk 0:00:40]} 45. Kg3 {[%clk 0:00:16]}  Kg5 {[%clk 0:00:40]} 46. h4+ {[%clk 0:00:16]}  Kh6 {[%clk 0:00:40]} 47. Kf4 {[%clk 0:00:16]}  Kg6 {[%clk 0:00:40]} 48. g3 {[%clk 0:00:17]}  Kf7 {[%clk 0:00:39]} 49. Kxf5 {[%clk 0:00:18]}  Ke7 {[%clk 0:00:40]} 50. Rd3 {[%clk 0:00:17]}  Kf7 {[%clk 0:00:40]} 51. Rd5 {[%clk 0:00:16]}  Ke7 {[%clk 0:00:39]} 52. Kg6 {[%clk 0:00:16]}  Ke6 {[%clk 0:00:39]} 53. Rd3 {[%clk 0:00:15]}  Ke5 {[%clk 0:00:39]} 54. Kxh5 {[%clk 0:00:15]}  Ke4 {[%clk 0:00:38]} 55. Rd1 {[%clk 0:00:15]}  Kf5 {[%clk 0:00:38]} 56. g4+ {[%clk 0:00:14]}  Kf4 {[%clk 0:00:38]} 57. g5 {[%clk 0:00:14]}  fxg5 {[%clk 0:00:37]} 58. hxg5 {[%clk 0:00:15]}  Kf5 {[%clk 0:00:38]} 59. Rf1+ {[%clk 0:00:13]}  Ke6 {[%clk 0:00:37]} 60. g6 {[%clk 0:00:13]}  Rxd7 {[%clk 0:00:36]} 61. Kh6 {[%clk 0:00:13]}  Rd2 {[%clk 0:00:36]} 62. g7 {[%clk 0:00:12]}  Rh2+ {[%clk 0:00:36]} 63. Kg6 {[%clk 0:00:12]}  Rg2+ {[%clk 0:00:36]} 64. Kh7 {[%clk 0:00:13]}  Rh2+ {[%clk 0:00:35]} 65. Kg8 {[%clk 0:00:14]}  Ke7 {[%clk 0:00:35]} 66. Rf4 {[%clk 0:00:13]}  Rg2 {[%clk 0:00:30]} 67. Kh7 {[%clk 0:00:13]}  Rh2+ {[%clk 0:00:28]} 68. Kg6 {[%clk 0:00:13]}  Rg2+ {[%clk 0:00:28]} 69. Kh7 {[%clk 0:00:12]}  Rh2+ {[%clk 0:00:28]} 70. Kg8 {[%clk 0:00:13]}  Rg2 {[%clk 0:00:28]} 71. Rf1 {[%clk 0:00:12]}  Rh2 {[%clk 0:00:26]} 72. Re1+ {[%clk 0:00:12]}  Kd6 {[%clk 0:00:22]} 73. Re4 {[%clk 0:00:12]}  Kd5 {[%clk 0:00:19]} 74. Re3 {[%clk 0:00:10]}  Kd6 {[%clk 0:00:19]} 75. Re1 {[%clk 0:00:09]}  Rh3 {[%clk 0:00:17]} 76. Rg1 {[%clk 0:00:06]}  Ke7 {[%clk 0:00:16]} 77. Re1+ {[%clk 0:00:06]}  Kd6 {[%clk 0:00:15]} 78. Kf8 {[%clk 0:00:05]}  Rf3+ {[%clk 0:00:15]} 79. Kg8 {[%clk 0:00:06]}  Rh3 {[%clk 0:00:15]} 1/2-1/2


[Site "https://www.chess.com"]

[Event "Titled Tuesday Blitz May 9 Late 2023"]
[White "Manukyan, Sargis A."]
[Black "Santos Flores, Alberto"]
[WhiteFideId "13303970"]
[BlackFideId "3601234"]
[WhiteElo "2187"]
[BlackElo "2235"]
[Result "1-0"]
[Round "05"]
[TimeControl "180+2"]
[Date "2023.05.09"]
[WhiteClock "0:00:28"]
[BlackClock "0:00:24"]

1. d4 {[%clk 0:03:00]}  d5 {[%clk 0:02:59]} 2. c4 {[%clk 0:03:01]}  c6 {[%clk 0:02:59]} 3. Nc3 {[%clk 0:03:02]}  Nf6 {[%clk 0:03:00]} 4. e3 {[%clk 0:03:02]}  a6 {[%clk 0:02:59]} 5. Nf3 {[%clk 0:03:01]}  Bf5 {[%clk 0:02:59]} 6. Bd3 {[%clk 0:02:54]}  Bxd3 {[%clk 0:02:59]} 7. Qxd3 {[%clk 0:02:55]}  e6 {[%clk 0:03:00]} 8. O-O {[%clk 0:02:55]}  Nbd7 {[%clk 0:03:00]} 9. e4 {[%clk 0:02:56]}  dxe4 {[%clk 0:03:00]} 10. Nxe4 {[%clk 0:02:57]}  Be7 {[%clk 0:02:58]} 11. b3 {[%clk 0:02:56]}  O-O {[%clk 0:02:57]} 12. Bb2 {[%clk 0:02:56]}  b5 {[%clk 0:02:48]} 13. Rad1 {[%clk 0:02:52]}  Qa5 {[%clk 0:02:43]} 14. Nxf6+ {[%clk 0:02:35]}  Bxf6 {[%clk 0:02:37]} 15. a3 {[%clk 0:02:27]}  bxc4 {[%clk 0:02:37]} 16. Qxc4 {[%clk 0:02:23]}  Qb5 {[%clk 0:02:30]} 17. Rc1 {[%clk 0:02:21]}  Rfc8 {[%clk 0:02:24]} 18. Ne5 {[%clk 0:02:10]}  Bxe5 {[%clk 0:02:20]} 19. dxe5 {[%clk 0:02:09]}  Nb6 {[%clk 0:02:08]} 20. Qc2 {[%clk 0:02:05]}  a5 {[%clk 0:02:02]} 21. a4 {[%clk 0:02:00]}  Qa6 {[%clk 0:02:01]} 22. Rfd1 {[%clk 0:01:56]}  Nd5 {[%clk 0:02:01]} 23. Rd4 {[%clk 0:01:50]}  Rab8 {[%clk 0:01:59]} 24. Rc4 {[%clk 0:01:50]}  h6 {[%clk 0:01:51]} 25. g3 {[%clk 0:01:49]}  Qb7 {[%clk 0:01:49]} 26. Bc3 {[%clk 0:01:46]}  Qxb3 {[%clk 0:01:43]} 27. Qxb3 {[%clk 0:01:38]}  Rxb3 {[%clk 0:01:44]} 28. Bxa5 {[%clk 0:01:39]}  Ra3 {[%clk 0:01:38]} 29. Be1 {[%clk 0:01:24]}  Nb6 {[%clk 0:00:44]} 30. Rxc6 {[%clk 0:01:24]}  Rxc6 {[%clk 0:00:44]} 31. Rxc6 {[%clk 0:01:25]}  Nxa4 {[%clk 0:00:44]} 32. Ra6 {[%clk 0:01:24]}  Ra2 {[%clk 0:00:41]} 33. Kf1 {[%clk 0:01:17]}  Nc3 {[%clk 0:00:40]} 34. Rxa2 {[%clk 0:01:16]}  Nxa2 {[%clk 0:00:41]} 35. Bd2 {[%clk 0:01:17]}  g5 {[%clk 0:00:40]} 36. Ke2 {[%clk 0:01:05]}  Kg7 {[%clk 0:00:40]} 37. Ke3 {[%clk 0:01:05]}  Kg6 {[%clk 0:00:39]} 38. g4 {[%clk 0:00:54]}  h5 {[%clk 0:00:37]} 39. h3 {[%clk 0:00:52]}  hxg4 {[%clk 0:00:37]} 40. hxg4 {[%clk 0:00:53]}  f5 {[%clk 0:00:37]} 41. f3 {[%clk 0:00:50]}  fxg4 {[%clk 0:00:34]} 42. fxg4 {[%clk 0:00:51]}  Kf7 {[%clk 0:00:34]} 43. Kd3 {[%clk 0:00:51]}  Ke8 {[%clk 0:00:35]} 44. Kc2 {[%clk 0:00:51]}  Kd7 {[%clk 0:00:35]} 45. Kb2 {[%clk 0:00:43]}  Kc6 {[%clk 0:00:35]} 46. Kxa2 {[%clk 0:00:43]}  Kd5 {[%clk 0:00:35]} 47. Bxg5 {[%clk 0:00:33]}  Kxe5 {[%clk 0:00:36]} 48. Bc1 {[%clk 0:00:30]}  Ke4 {[%clk 0:00:31]} 49. Kb3 {[%clk 0:00:29]}  Kd4 {[%clk 0:00:28]} 50. Kc2 {[%clk 0:00:28]}  e5 {[%clk 0:00:28]} 51. Kd1 {[%clk 0:00:28]}  e4 {[%clk 0:00:24]} 52. Ke2 {[%clk 0:00:28]} 1-0


[Site "https://www.chess.com"]

[Event "Titled Tuesday Blitz May 9 Late 2023"]
[White "Tworuszka, Michal"]
[Black "Omranalhosani21"]
[WhiteFideId "1117858"]
[WhiteElo "2432"]
[BlackElo "2614"]
[Result "0-1"]
[Round "05"]
[TimeControl "180+2"]
[Date "2023.05.09"]
[WhiteClock "0:00:51"]
[BlackClock "0:00:07"]

1. d4 {[%clk 0:03:00]}  d5 {[%clk 0:02:58]} 2. c4 {[%clk 0:03:00]}  dxc4 {[%clk 0:02:57]} 3. Nf3 {[%clk 0:02:59]}  e6 {[%clk 0:02:57]} 4. e3 {[%clk 0:02:54]}  Nf6 {[%clk 0:02:57]} 5. Bxc4 {[%clk 0:02:54]}  c5 {[%clk 0:02:55]} 6. O-O {[%clk 0:02:53]}  a6 {[%clk 0:02:53]} 7. b3 {[%clk 0:02:53]}  cxd4 {[%clk 0:02:45]} 8. Nxd4 {[%clk 0:02:52]}  Be7 {[%clk 0:02:44]} 9. Bb2 {[%clk 0:02:51]}  b5 {[%clk 0:02:44]} 10. Be2 {[%clk 0:02:51]}  Bb7 {[%clk 0:02:44]} 11. a4 {[%clk 0:02:50]}  bxa4 {[%clk 0:02:42]} 12. Rxa4 {[%clk 0:02:50]}  O-O {[%clk 0:02:43]} 13. Nd2 {[%clk 0:02:50]}  Nbd7 {[%clk 0:02:42]} 14. Qa1 {[%clk 0:02:46]}  Nc5 {[%clk 0:02:40]} 15. Ra5 {[%clk 0:02:45]}  h6 {[%clk 0:01:45]} 16. Bf3 {[%clk 0:02:41]}  Qb6 {[%clk 0:01:33]} 17. Nc4 {[%clk 0:02:32]}  Qa7 {[%clk 0:01:25]} 18. Nb5 {[%clk 0:02:24]}  Nxb3 {[%clk 0:00:56]} 19. Qa2 {[%clk 0:02:24]}  Qb8 {[%clk 0:00:30]} 20. Be5 {[%clk 0:02:24]}  Qd8 {[%clk 0:00:22]} 21. Bxb7 {[%clk 0:02:05]}  Nxa5 {[%clk 0:00:18]} 22. Bc7 {[%clk 0:01:42]}  Qd3 {[%clk 0:00:18]} 23. Nxa5 {[%clk 0:01:32]}  Qxb5 {[%clk 0:00:14]} 24. Bxa8 {[%clk 0:01:31]}  Rxa8 {[%clk 0:00:14]} 25. Rb1 {[%clk 0:01:30]}  Qd5 {[%clk 0:00:14]} 26. Qa1 {[%clk 0:01:18]}  Rc8 {[%clk 0:00:13]} 27. Be5 {[%clk 0:01:17]}  Rc5 {[%clk 0:00:08]} 28. Nb3 {[%clk 0:01:13]}  Qxe5 {[%clk 0:00:08]} 29. Qxa6 {[%clk 0:01:12]}  Rd5 {[%clk 0:00:07]} 30. Nd4 {[%clk 0:01:08]}  Bd6 {[%clk 0:00:06]} 31. h3 {[%clk 0:00:53]}  Qh2+ {[%clk 0:00:05]} 32. Kf1 {[%clk 0:00:53]}  Qh1+ {[%clk 0:00:06]} 33. Ke2 {[%clk 0:00:51]}  Qxb1 {[%clk 0:00:07]} 0-1


[Site "https://www.chess.com"]

[Event "Titled Tuesday Blitz May 9 Late 2023"]
[White "Howell, David W L"]
[Black "Tifferet, Shaked"]
[WhiteFideId "410608"]
[BlackFideId "2811529"]
[WhiteElo "2567"]
[BlackElo "2142"]
[Result "0-1"]
[Round "05"]
[TimeControl "180+2"]
[Date "2023.05.09"]
[WhiteClock "0:00:02"]
[BlackClock "0:00:04"]

1. e4 {[%clk 0:03:00]}  e5 {[%clk 0:02:57]} 2. Nf3 {[%clk 0:02:59]}  Nc6 {[%clk 0:02:57]} 3. Bc4 {[%clk 0:02:57]}  Bc5 {[%clk 0:02:56]} 4. d3 {[%clk 0:02:48]}  Nf6 {[%clk 0:02:53]} 5. Nc3 {[%clk 0:02:48]}  d6 {[%clk 0:02:45]} 6. Na4 {[%clk 0:02:47]}  Bb6 {[%clk 0:02:44]} 7. c3 {[%clk 0:02:43]}  O-O {[%clk 0:02:38]} 8. Bb3 {[%clk 0:02:43]}  Be6 {[%clk 0:02:32]} 9. Bc2 {[%clk 0:02:41]}  d5 {[%clk 0:02:28]} 10. Qe2 {[%clk 0:02:34]}  h6 {[%clk 0:02:14]} 11. O-O {[%clk 0:02:29]}  Re8 {[%clk 0:02:08]} 12. Re1 {[%clk 0:02:29]}  Qd6 {[%clk 0:01:48]} 13. Bd2 {[%clk 0:02:18]}  Rad8 {[%clk 0:01:40]} 14. h3 {[%clk 0:02:16]}  d4 {[%clk 0:01:14]} 15. Nxb6 {[%clk 0:01:44]}  axb6 {[%clk 0:01:14]} 16. a4 {[%clk 0:01:43]}  Nd7 {[%clk 0:01:07]} 17. Red1 {[%clk 0:01:27]}  Nc5 {[%clk 0:01:05]} 18. b4 {[%clk 0:01:09]}  Nb3 {[%clk 0:01:03]} 19. Bxb3 {[%clk 0:01:09]}  Bxb3 {[%clk 0:01:03]} 20. Rdb1 {[%clk 0:01:09]}  Bc2 {[%clk 0:00:58]} 21. Rb2 {[%clk 0:00:40]}  dxc3 {[%clk 0:00:55]} 22. Bxc3 {[%clk 0:00:41]}  Bxd3 {[%clk 0:00:55]} 23. Qe3 {[%clk 0:00:41]}  Bc4 {[%clk 0:00:53]} 24. Rd2 {[%clk 0:00:34]}  Qe6 {[%clk 0:00:51]} 25. Rxd8 {[%clk 0:00:26]}  Rxd8 {[%clk 0:00:52]} 26. b5 {[%clk 0:00:26]}  Nd4 {[%clk 0:00:48]} 27. Nxd4 {[%clk 0:00:24]}  exd4 {[%clk 0:00:48]} 28. Bxd4 {[%clk 0:00:25]}  Qd6 {[%clk 0:00:42]} 29. Bb2 {[%clk 0:00:09]}  Qd3 {[%clk 0:00:40]} 30. Qf4 {[%clk 0:00:05]}  Qc2 {[%clk 0:00:30]} 31. Qxc7 {[%clk 0:00:02]}  Rd2 {[%clk 0:00:21]} 32. Be5 {[%clk 0:00:01]}  Rxf2 {[%clk 0:00:18]} 33. Qc8+ {[%clk 0:00:02]}  Kh7 {[%clk 0:00:18]} 34. Qg4 {[%clk 0:00:02]}  f6 {[%clk 0:00:17]} 35. Bd4 {[%clk 0:00:02]}  Be6 {[%clk 0:00:11]} 36. Qg3 {[%clk 0:00:02]}  Rd2 {[%clk 0:00:10]} 37. Bxb6 {[%clk 0:00:02]}  Qxe4 {[%clk 0:00:08]} 38. Bf2 {[%clk 0:00:02]}  Bd5 {[%clk 0:00:07]} 39. a5 {[%clk 0:00:02]}  h5 {[%clk 0:00:05]} 40. a6 {[%clk 0:00:02]}  bxa6 {[%clk 0:00:05]} 41. bxa6 {[%clk 0:00:02]}  Rd3 {[%clk 0:00:06]} 42. Qh4 {[%clk 0:00:02]}  Qxg2# {[%clk 0:00:04]} 0-1


[Site "https://www.chess.com"]

[Event "Titled Tuesday Blitz May 9 Late 2023"]
[White "Bryakin, Mikhail"]
[Black "koncheto"]
[WhiteFideId "4165314"]
[WhiteElo "2467"]
[BlackElo "2483"]
[Result "1-0"]
[Round "05"]
[TimeControl "180+2"]
[Date "2023.05.09"]
[WhiteClock "0:01:02"]
[BlackClock "0:00:05"]

1. Nf3 {[%clk 0:02:59]}  Nf6 {[%clk 0:02:57]} 2. e3 {[%clk 0:02:59]}  e6 {[%clk 0:02:55]} 3. d4 {[%clk 0:02:58]}  d5 {[%clk 0:02:50]} 4. Bd3 {[%clk 0:02:58]}  Bd6 {[%clk 0:02:49]} 5. b3 {[%clk 0:02:59]}  O-O {[%clk 0:02:49]} 6. Bb2 {[%clk 0:02:59]}  c5 {[%clk 0:02:50]} 7. Nbd2 {[%clk 0:02:59]}  b6 {[%clk 0:02:50]} 8. O-O {[%clk 0:02:59]}  Bb7 {[%clk 0:02:50]} 9. Ne5 {[%clk 0:03:00]}  Ne4 {[%clk 0:02:49]} 10. dxc5 {[%clk 0:02:48]}  Nxc5 {[%clk 0:02:43]} 11. Be2 {[%clk 0:02:38]}  Nc6 {[%clk 0:02:35]} 12. Nxc6 {[%clk 0:02:32]}  Bxc6 {[%clk 0:02:33]} 13. Nf3 {[%clk 0:02:26]}  Rc8 {[%clk 0:02:26]} 14. Qd4 {[%clk 0:02:26]}  f6 {[%clk 0:02:23]} 15. Qg4 {[%clk 0:02:26]}  Qe7 {[%clk 0:02:11]} 16. c4 {[%clk 0:02:24]}  e5 {[%clk 0:01:53]} 17. Rfd1 {[%clk 0:02:23]}  Bd7 {[%clk 0:01:45]} 18. Qh4 {[%clk 0:02:20]}  dxc4 {[%clk 0:01:43]} 19. Bxc4+ {[%clk 0:02:17]}  Be6 {[%clk 0:01:38]} 20. Rac1 {[%clk 0:02:12]}  Rfd8 {[%clk 0:01:29]} 21. h3 {[%clk 0:02:09]}  Qf7 {[%clk 0:01:09]} 22. Bxe6 {[%clk 0:02:06]}  Qxe6 {[%clk 0:01:08]} 23. Qc4 {[%clk 0:02:06]}  Kf7 {[%clk 0:01:03]} 24. Qh4 {[%clk 0:02:05]}  Kg8 {[%clk 0:01:02]} 25. Qc4 {[%clk 0:02:05]}  Kf7 {[%clk 0:01:02]} 26. Qe2 {[%clk 0:02:04]}  Kg8 {[%clk 0:00:58]} 27. Nh4 {[%clk 0:02:05]}  Bf8 {[%clk 0:00:53]} 28. Qg4 {[%clk 0:02:02]}  Qxg4 {[%clk 0:00:45]} 29. hxg4 {[%clk 0:02:03]}  Kf7 {[%clk 0:00:46]} 30. Nf3 {[%clk 0:02:00]}  e4 {[%clk 0:00:39]} 31. Rxd8 {[%clk 0:01:55]}  Rxd8 {[%clk 0:00:38]} 32. Nd4 {[%clk 0:01:56]}  Bd6 {[%clk 0:00:34]} 33. Nb5 {[%clk 0:01:52]}  Nd3 {[%clk 0:00:30]} 34. Rc6 {[%clk 0:01:42]}  Bb8 {[%clk 0:00:23]} 35. Bd4 {[%clk 0:01:39]}  Ne5 {[%clk 0:00:22]} 36. Bxe5 {[%clk 0:01:32]}  Bxe5 {[%clk 0:00:18]} 37. g3 {[%clk 0:01:30]}  Rd7 {[%clk 0:00:18]} 38. a4 {[%clk 0:01:27]}  g6 {[%clk 0:00:17]} 39. Na3 {[%clk 0:01:27]}  Rc7 {[%clk 0:00:15]} 40. Rxc7+ {[%clk 0:01:22]}  Bxc7 {[%clk 0:00:16]} 41. Nb5 {[%clk 0:01:22]}  Bb8 {[%clk 0:00:16]} 42. Nc3 {[%clk 0:01:23]}  f5 {[%clk 0:00:16]} 43. Kf1 {[%clk 0:01:21]}  Be5 {[%clk 0:00:13]} 44. Nb5 {[%clk 0:01:21]}  a6 {[%clk 0:00:13]} 45. Na3 {[%clk 0:01:20]}  Ke6 {[%clk 0:00:13]} 46. gxf5+ {[%clk 0:01:20]}  gxf5 {[%clk 0:00:13]} 47. Ke2 {[%clk 0:01:21]}  Kd5 {[%clk 0:00:13]} 48. Nc4 {[%clk 0:01:17]}  Bc7 {[%clk 0:00:13]} 49. Na3 {[%clk 0:01:13]}  h5 {[%clk 0:00:12]} 50. Nc2 {[%clk 0:01:14]}  Ke5 {[%clk 0:00:02]} 51. Kd2 {[%clk 0:01:11]}  Bd6 {[%clk 0:00:02]} 52. Kc3 {[%clk 0:01:11]}  a5 {[%clk 0:00:01]} 53. Kc4 {[%clk 0:01:12]}  Be7 {[%clk 0:00:01]} 54. Nd4 {[%clk 0:01:06]}  Bc5 {[%clk 0:00:01]} 55. Ne2 {[%clk 0:01:05]}  Kf6 {[%clk 0:00:01]} 56. Nf4 {[%clk 0:00:59]}  Kg5 {[%clk 0:00:02]} 57. Ne6+ {[%clk 0:00:59]}  Kg4 {[%clk 0:00:02]} 58. Nxc5 {[%clk 0:01:00]}  bxc5 {[%clk 0:00:02]} 59. Kxc5 {[%clk 0:01:01]}  Kf3 {[%clk 0:00:03]} 60. b4 {[%clk 0:01:02]}  axb4 {[%clk 0:00:03]} 61. Kxb4 {[%clk 0:01:02]}  Kxf2 {[%clk 0:00:03]} 62. a5 {[%clk 0:01:03]}  Kxg3 {[%clk 0:00:04]} 63. a6 {[%clk 0:01:04]}  h4 {[%clk 0:00:05]} 64. a7 {[%clk 0:01:04]}  h3 {[%clk 0:00:06]} 65. a8=Q {[%clk 0:01:05]}  h2 {[%clk 0:00:07]} 66. Qg8+ {[%clk 0:01:01]}  Kf2 {[%clk 0:00:05]} 67. Qh7 {[%clk 0:01:01]}  Kg1 {[%clk 0:00:03]} 68. Qg6+ {[%clk 0:01:02]}  Kh1 {[%clk 0:00:03]} 69. Kc4 {[%clk 0:00:57]}  f4 {[%clk 0:00:03]} 70. exf4 {[%clk 0:00:58]}  e3 {[%clk 0:00:04]} 71. Qe4+ {[%clk 0:00:58]}  Kg1 {[%clk 0:00:04]} 72. Qxe3+ {[%clk 0:00:59]}  Kg2 {[%clk 0:00:04]} 73. Qe2+ {[%clk 0:00:59]}  Kg1 {[%clk 0:00:05]} 74. Qxh2+ {[%clk 0:01:00]}  Kf1 {[%clk 0:00:05]} 75. f5 {[%clk 0:01:01]}  Ke1 {[%clk 0:00:06]} 76. f6 {[%clk 0:01:02]}  Kd1 {[%clk 0:00:05]} 77. f7 {[%clk 0:01:02]} 1-0


[Site "https://www.chess.com"]

[Event "Titled Tuesday Blitz May 9 Late 2023"]
[White "Yeritsyan, Hayk"]
[Black "Rorrer, Grayson"]
[WhiteFideId "13307320"]
[BlackFideId "30944996"]
[WhiteElo "2485"]
[BlackElo "2200"]
[Result "0-1"]
[Round "05"]
[TimeControl "180+2"]
[Date "2023.05.09"]
[WhiteClock "0:00:07"]
[BlackClock "0:00:16"]

1. d4 {[%clk 0:01:03]}  Nf6 {[%clk 0:02:51]} 2. Nf3 {[%clk 0:01:03]}  g6 {[%clk 0:02:49]} 3. Bf4 {[%clk 0:01:03]}  Bg7 {[%clk 0:02:49]} 4. h3 {[%clk 0:01:03]}  d6 {[%clk 0:02:45]} 5. e3 {[%clk 0:01:03]}  c5 {[%clk 0:02:44]} 6. c3 {[%clk 0:01:03]}  cxd4 {[%clk 0:02:43]} 7. exd4 {[%clk 0:01:02]}  O-O {[%clk 0:02:44]} 8. Be2 {[%clk 0:01:01]}  Nbd7 {[%clk 0:02:41]} 9. O-O {[%clk 0:01:01]}  Qc7 {[%clk 0:02:41]} 10. Bh2 {[%clk 0:01:01]}  b6 {[%clk 0:02:42]} 11. Nbd2 {[%clk 0:01:01]}  Bb7 {[%clk 0:02:42]} 12. Re1 {[%clk 0:01:02]}  Rfe8 {[%clk 0:02:42]} 13. Bf1 {[%clk 0:01:00]}  e5 {[%clk 0:02:36]} 14. Nc4 {[%clk 0:01:00]}  Nd5 {[%clk 0:02:31]} 15. Rc1 {[%clk 0:00:56]}  a6 {[%clk 0:02:25]} 16. a3 {[%clk 0:00:55]}  b5 {[%clk 0:02:15]} 17. Ne3 {[%clk 0:00:49]}  N7b6 {[%clk 0:01:21]} 18. Nxd5 {[%clk 0:00:44]}  Bxd5 {[%clk 0:01:21]} 19. Be2 {[%clk 0:00:40]}  Rad8 {[%clk 0:01:20]} 20. Bg3 {[%clk 0:00:35]}  Qb7 {[%clk 0:01:16]} 21. Ra1 {[%clk 0:00:32]}  e4 {[%clk 0:01:13]} 22. Nd2 {[%clk 0:00:28]}  e3 {[%clk 0:01:13]} 23. fxe3 {[%clk 0:00:28]}  Bxg2 {[%clk 0:01:13]} 24. Bf3 {[%clk 0:00:27]}  Bxf3 {[%clk 0:01:12]} 25. Qxf3 {[%clk 0:00:27]}  Qd7 {[%clk 0:01:09]} 26. Kg2 {[%clk 0:00:22]}  d5 {[%clk 0:01:10]} 27. e4 {[%clk 0:00:20]}  dxe4 {[%clk 0:01:10]} 28. Rxe4 {[%clk 0:00:19]}  Rxe4 {[%clk 0:00:51]} 29. Nxe4 {[%clk 0:00:20]}  Qd5 {[%clk 0:00:40]} 30. Rf1 {[%clk 0:00:18]}  f5 {[%clk 0:00:32]} 31. Nd2 {[%clk 0:00:18]}  Qd7 {[%clk 0:00:26]} 32. Re1 {[%clk 0:00:17]}  Nd5 {[%clk 0:00:24]} 33. Qe2 {[%clk 0:00:16]}  Kf7 {[%clk 0:00:21]} 34. Nf3 {[%clk 0:00:16]}  Re8 {[%clk 0:00:19]} 35. Qxe8+ {[%clk 0:00:16]}  Qxe8 {[%clk 0:00:19]} 36. Rxe8 {[%clk 0:00:16]}  Kxe8 {[%clk 0:00:20]} 37. Kf2 {[%clk 0:00:15]}  Nb6 {[%clk 0:00:20]} 38. Nd2 {[%clk 0:00:15]}  Na4 {[%clk 0:00:20]} 39. c4 {[%clk 0:00:11]}  Bxd4+ {[%clk 0:00:19]} 40. Ke2 {[%clk 0:00:11]}  Bxb2 {[%clk 0:00:18]} 41. cxb5 {[%clk 0:00:12]}  axb5 {[%clk 0:00:19]} 42. Bd6 {[%clk 0:00:12]}  Kd7 {[%clk 0:00:19]} 43. Bb4 {[%clk 0:00:12]}  Nc3+ {[%clk 0:00:19]} 44. Kd3 {[%clk 0:00:11]}  Nd5 {[%clk 0:00:19]} 45. Bc5 {[%clk 0:00:10]}  Nf4+ {[%clk 0:00:18]} 46. Ke3 {[%clk 0:00:10]}  Nxh3 {[%clk 0:00:18]} 47. Nf3 {[%clk 0:00:11]}  Bf6 {[%clk 0:00:17]} 48. Ke2 {[%clk 0:00:10]}  Nf4+ {[%clk 0:00:16]} 49. Ke3 {[%clk 0:00:10]}  Ne6 {[%clk 0:00:17]} 50. Bb4 {[%clk 0:00:10]}  Kc6 {[%clk 0:00:18]} 51. Nd2 {[%clk 0:00:09]}  Nd4 {[%clk 0:00:16]} 52. Nf1 {[%clk 0:00:07]}  Nc2+ {[%clk 0:00:16]} 53. Kd3 {[%clk 0:00:07]}  Nxb4+ {[%clk 0:00:16]} 54. axb4 {[%clk 0:00:08]}  h5 {[%clk 0:00:15]} 55. Ne3 {[%clk 0:00:08]}  h4 {[%clk 0:00:15]} 56. Ng2 {[%clk 0:00:08]}  h3 {[%clk 0:00:15]} 57. Ne1 {[%clk 0:00:07]}  h2 {[%clk 0:00:16]} 0-1


[Site "https://www.chess.com"]